[Event "*** Titled Tuesday Blitz"]
[Site "Chess.com"]
[Date "2020.12.01"]
[Round "7"]
[White "xamax2000"]
[Black "Onischuk_V"]
[Result "0-1"]
[WhiteElo "2656"]
[BlackElo "2848"]
[TimeControl "180+1"]
[EndTime "11:15:04 PST"]
[Termination "Onischuk_V won by resignation"]

1. e4 {[%clk 0:03:00.9]} 1... d6 {[%clk 0:02:57.8]} 2. d4 {[%clk 0:03:00]} 2...
Nf6 {[%clk 0:02:58]} 3. Bd3 {[%clk 0:02:59.5]} 3... e5 {[%clk 0:02:56.6]} 4. c3
{[%clk 0:02:59.1]} 4... Nc6 {[%clk 0:02:56.4]} 5. Nf3 {[%clk 0:02:58.8]} 5... g6
{[%clk 0:02:56.1]} 6. h3 {[%clk 0:02:57.9]} 6... Bg7 {[%clk 0:02:56.5]} 7. O-O
{[%clk 0:02:58.5]} 7... O-O {[%clk 0:02:57]} 8. Re1 {[%clk 0:02:58]} 8... a5
{[%clk 0:02:51]} 9. Na3 {[%clk 0:02:52.4]} 9... Re8 {[%clk 0:02:30.1]} 10. Nc2
{[%clk 0:02:26.4]} 10... d5 {[%clk 0:02:19]} 11. exd5 {[%clk 0:01:30.4]} 11...
Qxd5 {[%clk 0:02:18.2]} 12. c4 {[%clk 0:00:25]} 12... Qd6 {[%clk 0:02:17.9]} 13.
d5 {[%clk 0:00:23.5]} 13... e4 {[%clk 0:02:16.6]} 14. dxc6 {[%clk 0:00:15.9]}
14... exd3 {[%clk 0:02:14.6]} 15. Rxe8+ {[%clk 0:00:16]} 15... Nxe8 {[%clk
0:02:14.2]} 16. Ne3 {[%clk 0:00:12.4]} 16... bxc6 {[%clk 0:02:08.5]} 17. c5
{[%clk 0:00:12.3]} 17... Qxc5 {[%clk 0:02:06.8]} 18. Qxd3 {[%clk 0:00:12]} 18...
Be6 {[%clk 0:02:07.2]} 19. Bd2 {[%clk 0:00:11.7]} 19... Bxb2 {[%clk 0:02:05.6]}
20. Rb1 {[%clk 0:00:11.6]} 20... Bg7 {[%clk 0:02:04.7]} 21. Rc1 {[%clk
0:00:11.1]} 21... Qb5 {[%clk 0:02:03.3]} 22. Qe4 {[%clk 0:00:10.9]} 22... Nd6
{[%clk 0:02:01.6]} 23. Qxc6 {[%clk 0:00:10.8]} 23... Qxc6 {[%clk 0:02:01.5]} 24.
Rxc6 {[%clk 0:00:11.7]} 24... Bxa2 {[%clk 0:02:01.5]} 25. Rxc7 {[%clk
0:00:12.2]} 25... a4 {[%clk 0:02:01.6]} 26. Bb4 {[%clk 0:00:11.9]} 26... Nb5
{[%clk 0:01:58.3]} 27. Rb7 {[%clk 0:00:11.9]} 27... Nd4 {[%clk 0:01:55.7]} 28.
Nd2 {[%clk 0:00:10.1]} 28... Be6 {[%clk 0:01:52.2]} 29. Ba3 {[%clk 0:00:10.1]}
29... Bf8 {[%clk 0:01:49.1]} 30. Ndc4 {[%clk 0:00:08.2]} 30... Rc8 {[%clk
0:01:35.5]} 31. Bxf8 {[%clk 0:00:07.2]} 31... Kxf8 {[%clk 0:01:35.1]} 32. Na3
{[%clk 0:00:07.7]} 32... Rc3 {[%clk 0:01:32]} 33. Nb1 {[%clk 0:00:05.3]} 33...
Rb3 {[%clk 0:01:21.3]} 34. Rxb3 {[%clk 0:00:04.8]} 34... Bxb3 {[%clk 0:01:21]}
35. Kf1 {[%clk 0:00:05.7]} 35... Nb5 {[%clk 0:01:20.1]} 36. Nd2 {[%clk
0:00:03.6]} 36... Be6 {[%clk 0:01:19]} 37. Nc2 {[%clk 0:00:03.4]} 37... a3
{[%clk 0:01:18]} 0-1

[Event "*** Titled Tuesday Blitz"]
[Site "Chess.com"]
[Date "2020.12.01"]
[Round "7"]
[White "Zkid"]
[Black "GothamChess"]
[Result "1-0"]
[WhiteElo "2781"]
[BlackElo "2573"]
[TimeControl "180+1"]
[EndTime "11:15:04 PST"]
[Termination "Zkid won by resignation"]

1. e4 {[%clk 0:03:00.2]} 1... e6 {[%clk 0:02:56.7]} 2. d4 {[%clk 0:02:59.9]}
2... d5 {[%clk 0:02:56.3]} 3. Nc3 {[%clk 0:03:00.5]} 3... dxe4 {[%clk
0:02:56.7]} 4. Nxe4 {[%clk 0:03:00.2]} 4... Nf6 {[%clk 0:02:57.6]} 5. Bg5 {[%clk
0:02:57]} 5... Be7 {[%clk 0:02:56.5]} 6. Bxf6 {[%clk 0:02:57.1]} 6... gxf6
{[%clk 0:02:55.9]} 7. Nf3 {[%clk 0:02:56.9]} 7... a6 {[%clk 0:02:49.8]} 8. Bc4
{[%clk 0:02:52.5]} 8... f5 {[%clk 0:02:45.7]} 9. Nc3 {[%clk 0:02:52]} 9... b5
{[%clk 0:02:45.7]} 10. Bb3 {[%clk 0:02:51.3]} 10... c6 {[%clk 0:02:44.6]} 11.
Ne5 {[%clk 0:02:38.7]} 11... Bf6 {[%clk 0:02:32.9]} 12. Qh5 {[%clk 0:02:34.1]}
12... Ra7 {[%clk 0:02:22.3]} 13. O-O-O {[%clk 0:02:25.6]} 13... Rg8 {[%clk
0:02:16.4]} 14. f4 {[%clk 0:02:15]} 14... Re7 {[%clk 0:02:05.6]} 15. g4 {[%clk
0:02:08.5]} 15... fxg4 {[%clk 0:02:01]} 16. Nxg4 {[%clk 0:02:08.3]} 16... Bg7
{[%clk 0:01:56.7]} 17. Rhg1 {[%clk 0:01:56.8]} 17... Nd7 {[%clk 0:01:49.1]} 18.
f5 {[%clk 0:01:43.7]} 18... exf5 {[%clk 0:01:35.2]} 19. Rde1 {[%clk 0:01:20.7]}
19... Rf8 {[%clk 0:01:04.1]} 20. Nh6 {[%clk 0:01:06.1]} 20... Bxh6+ {[%clk
0:00:47.7]} 21. Qxh6 {[%clk 0:01:07]} 21... Nb6 {[%clk 0:00:38.5]} 22. Qxc6+
{[%clk 0:00:50]} 22... Bd7 {[%clk 0:00:38.8]} 23. Qh6 {[%clk 0:00:46.1]} 23...
Be6 {[%clk 0:00:33.1]} 24. Bxe6 {[%clk 0:00:43]} 24... fxe6 {[%clk 0:00:31.4]}
25. Rxe6 {[%clk 0:00:43.5]} 25... Qxd4 {[%clk 0:00:31.4]} 26. Rxe7+ {[%clk
0:00:39.7]} 26... Kxe7 {[%clk 0:00:31.1]} 27. Re1+ {[%clk 0:00:33.3]} 27... Kf7
{[%clk 0:00:23.5]} 28. Qxh7+ {[%clk 0:00:32.5]} 28... Kf6 {[%clk 0:00:23.8]} 29.
Qe7+ {[%clk 0:00:31.2]} 29... Kg6 {[%clk 0:00:24.3]} 30. Qxf8 {[%clk 0:00:27.2]}
1-0

[Event "*** Titled Tuesday Blitz"]
[Site "Chess.com"]
[Date "2020.12.01"]
[Round "7"]
[White "gochatoria98"]
[Black "DrMamaliga"]
[Result "0-1"]
[WhiteElo "2156"]
[BlackElo "2348"]
[TimeControl "180+1"]
[EndTime "11:15:07 PST"]
[Termination "DrMamaliga won on time"]

1. e4 {[%clk 0:03:00.9]} 1... e5 {[%clk 0:02:59]} 2. Nf3 {[%clk 0:03:00.6]} 2...
Nc6 {[%clk 0:02:59.6]} 3. Bc4 {[%clk 0:02:59.7]} 3... Nf6 {[%clk 0:02:59.2]} 4.
d4 {[%clk 0:02:58.9]} 4... exd4 {[%clk 0:02:58.8]} 5. O-O {[%clk 0:02:58.9]}
5... Nxe4 {[%clk 0:02:58.9]} 6. Re1 {[%clk 0:02:57.3]} 6... d5 {[%clk
0:02:59.2]} 7. Bxd5 {[%clk 0:02:57.9]} 7... Qxd5 {[%clk 0:03:00.1]} 8. Nc3
{[%clk 0:02:58.3]} 8... Qd7 {[%clk 0:03:01]} 9. Nxe4 {[%clk 0:02:53.6]} 9... Be7
{[%clk 0:03:01.5]} 10. Bg5 {[%clk 0:02:52.9]} 10... O-O {[%clk 0:02:51.7]} 11.
Bxe7 {[%clk 0:02:52.1]} 11... Nxe7 {[%clk 0:02:51.8]} 12. Qxd4 {[%clk
0:02:47.2]} 12... Nf5 {[%clk 0:02:47.1]} 13. Qc3 {[%clk 0:02:34.2]} 13... Re8
{[%clk 0:02:36]} 14. Rad1 {[%clk 0:02:26.2]} 14... Qb5 {[%clk 0:02:15.1]} 15. b3
{[%clk 0:01:02.2]} 15... Be6 {[%clk 0:02:11.3]} 16. a4 {[%clk 0:01:01.3]} 16...
Qb6 {[%clk 0:02:00.5]} 17. Nc5 {[%clk 0:00:56.5]} 17... Rac8 {[%clk 0:01:50.8]}
18. a5 {[%clk 0:00:55.6]} 18... Qc6 {[%clk 0:01:48.9]} 19. Ne5 {[%clk
0:00:51.4]} 19... Qb5 {[%clk 0:01:43.1]} 20. Nxe6 {[%clk 0:00:33.5]} 20... Rxe6
{[%clk 0:01:43.8]} 21. Nf3 {[%clk 0:00:27.5]} 21... Rxe1+ {[%clk 0:01:25.3]} 22.
Rxe1 {[%clk 0:00:27.4]} 22... Qd7 {[%clk 0:01:25.9]} 23. Qe5 {[%clk 0:00:24.9]}
23... Nd6 {[%clk 0:01:20.6]} 24. Rd1 {[%clk 0:00:19.7]} 24... f6 {[%clk
0:01:12.7]} 25. Qd5+ {[%clk 0:00:19.2]} 25... Qf7 {[%clk 0:01:13.2]} 26. h4
{[%clk 0:00:13]} 26... Re8 {[%clk 0:01:08.6]} 27. Qxf7+ {[%clk 0:00:06.5]} 27...
Kxf7 {[%clk 0:01:09.5]} 28. g3 {[%clk 0:00:05.6]} 28... Re2 {[%clk 0:01:09.1]}
29. Rd2 {[%clk 0:00:05.5]} 29... Rxd2 {[%clk 0:01:06.6]} 30. Nxd2 {[%clk
0:00:06.2]} 30... Ke6 {[%clk 0:01:05.2]} 31. Kf1 {[%clk 0:00:06.3]} 31... Kd5
{[%clk 0:01:05.3]} 32. Ke2 {[%clk 0:00:06.7]} 32... Kc5 {[%clk 0:01:05.4]} 0-1

[Event "*** Titled Tuesday Blitz"]
[Site "Chess.com"]
[Date "2020.12.01"]
[Round "7"]
[White "diamonds13"]
[Black "nikitadovbnya2008"]
[Result "1-0"]
[WhiteElo "2336"]
[BlackElo "2181"]
[TimeControl "180+1"]
[EndTime "11:15:08 PST"]
[Termination "diamonds13 won on time"]

1. d4 {[%clk 0:02:57.3]} 1... Nf6 {[%clk 0:02:59.5]} 2. c4 {[%clk 0:02:57.8]}
2... e6 {[%clk 0:02:59.8]} 3. Nc3 {[%clk 0:02:57.9]} 3... Bb4 {[%clk 0:02:59.7]}
4. Nf3 {[%clk 0:02:58]} 4... O-O {[%clk 0:02:57.8]} 5. Bd2 {[%clk 0:02:58.1]}
5... b6 {[%clk 0:02:51.6]} 6. e3 {[%clk 0:02:57.7]} 6... Bb7 {[%clk 0:02:51.3]}
7. Bd3 {[%clk 0:02:53.2]} 7... d6 {[%clk 0:02:48.3]} 8. Rc1 {[%clk 0:02:51.9]}
8... Nbd7 {[%clk 0:02:47.8]} 9. a3 {[%clk 0:02:52.1]} 9... Bxc3 {[%clk
0:02:47.8]} 10. Bxc3 {[%clk 0:02:52.2]} 10... c5 {[%clk 0:02:43.7]} 11. O-O
{[%clk 0:02:47.2]} 11... Qe7 {[%clk 0:02:43.8]} 12. Qc2 {[%clk 0:02:45]} 12...
Rfe8 {[%clk 0:02:33.5]} 13. Rfd1 {[%clk 0:02:43.8]} 13... h6 {[%clk 0:02:24]}
14. b4 {[%clk 0:02:42.7]} 14... Rac8 {[%clk 0:02:23.1]} 15. dxc5 {[%clk
0:02:38.9]} 15... bxc5 {[%clk 0:02:19.2]} 16. b5 {[%clk 0:02:36.8]} 16... e5
{[%clk 0:02:18.1]} 17. Be2 {[%clk 0:02:32.4]} 17... Nf8 {[%clk 0:02:08.9]} 18.
a4 {[%clk 0:02:30.6]} 18... Ng6 {[%clk 0:02:05.7]} 19. a5 {[%clk 0:02:30.2]}
19... Be4 {[%clk 0:01:59.5]} 20. Qb2 {[%clk 0:02:28.5]} 20... Qe6 {[%clk
0:01:54.1]} 21. Nd2 {[%clk 0:02:28]} 21... Ba8 {[%clk 0:01:50.9]} 22. f3 {[%clk
0:02:26.4]} 22... Nh4 {[%clk 0:01:45.8]} 23. Nf1 {[%clk 0:02:23.4]} 23... Nh5
{[%clk 0:01:20.3]} 24. Be1 {[%clk 0:02:22.7]} 24... g5 {[%clk 0:01:17.5]} 25.
Qd2 {[%clk 0:02:11.5]} 25... Rcd8 {[%clk 0:01:15.8]} 26. b6 {[%clk 0:02:10.5]}
26... axb6 {[%clk 0:01:15.6]} 27. axb6 {[%clk 0:02:10.5]} 27... f5 {[%clk
0:01:13]} 28. Ra1 {[%clk 0:02:02.3]} 28... Nf6 {[%clk 0:01:01.5]} 29. Ra7 {[%clk
0:01:56.6]} 29... Bc6 {[%clk 0:00:58.6]} 30. Rc7 {[%clk 0:01:52.3]} 30... d5
{[%clk 0:00:55]} 31. Qa5 {[%clk 0:01:44.1]} 31... dxc4 {[%clk 0:00:20.9]} 32.
Qxc5 {[%clk 0:01:32.7]} 32... Rxd1 {[%clk 0:00:18.6]} 33. Rxc6 {[%clk
0:01:24.1]} 33... Rxe1 {[%clk 0:00:14.3]} 34. Rxe6 {[%clk 0:01:21.2]} 34... Rxe6
{[%clk 0:00:14.2]} 35. Bxc4 {[%clk 0:01:20.8]} 35... Kf7 {[%clk 0:00:05.6]} 36.
Qxe5 {[%clk 0:01:18.2]} 36... Nxf3+ {[%clk 0:00:02.6]} 37. gxf3 {[%clk
0:01:17.6]} 37... Rxf1+ {[%clk 0:00:01.9]} 38. Kxf1 {[%clk 0:01:17]} 1-0

[Event "*** Titled Tuesday Blitz"]
[Site "Chess.com"]
[Date "2020.12.01"]
[Round "7"]
[White "Pertinhez76"]
[Black "ZuchBolt"]
[Result "1-0"]
[WhiteElo "2033"]
[BlackElo "2144"]
[TimeControl "180+1"]
[EndTime "11:15:08 PST"]
[Termination "Pertinhez76 won on time"]

1. e4 {[%clk 0:03:00.9]} 1... e5 {[%clk 0:02:25.9]} 2. Nf3 {[%clk 0:03:00]} 2...
Nc6 {[%clk 0:02:24.2]} 3. d4 {[%clk 0:02:59.8]} 3... exd4 {[%clk 0:02:21.3]} 4.
Bc4 {[%clk 0:03:00.2]} 4... Bc5 {[%clk 0:02:19.4]} 5. c3 {[%clk 0:02:59.4]} 5...
Nf6 {[%clk 0:02:12]} 6. cxd4 {[%clk 0:02:58.1]} 6... Bb4+ {[%clk 0:02:07.5]} 7.
Nc3 {[%clk 0:02:25]} 7... Nxe4 {[%clk 0:01:45.7]} 8. O-O {[%clk 0:02:13.5]} 8...
Bxc3 {[%clk 0:01:38.1]} 9. bxc3 {[%clk 0:02:08.7]} 9... d5 {[%clk 0:01:35.3]}
10. Re1 {[%clk 0:02:00]} 10... O-O {[%clk 0:01:33.2]} 11. Bd3 {[%clk 0:01:59.6]}
11... Bf5 {[%clk 0:01:30.5]} 12. Qc2 {[%clk 0:01:59.1]} 12... Bg6 {[%clk
0:01:29.1]} 13. Rb1 {[%clk 0:01:55.9]} 13... b6 {[%clk 0:01:28.4]} 14. Bf4
{[%clk 0:01:50.5]} 14... Re8 {[%clk 0:01:11.4]} 15. h3 {[%clk 0:01:47.2]} 15...
f6 {[%clk 0:01:02.7]} 16. Rbd1 {[%clk 0:01:41.6]} 16... Na5 {[%clk 0:00:56.2]}
17. Nh4 {[%clk 0:01:34.9]} 17... Bf7 {[%clk 0:00:55.7]} 18. Nf5 {[%clk
0:01:33.5]} 18... Qd7 {[%clk 0:00:47.6]} 19. g4 {[%clk 0:01:31.3]} 19... Nb7
{[%clk 0:00:19.2]} 20. a4 {[%clk 0:01:27.9]} 20... c5 {[%clk 0:00:17.4]} 21. Bb5
{[%clk 0:01:27.5]} 21... Qd8 {[%clk 0:00:12.5]} 22. Bxe8 {[%clk 0:01:26.1]}
22... Bxe8 {[%clk 0:00:13.4]} 23. f3 {[%clk 0:01:23.8]} 23... Ng5 {[%clk
0:00:09.6]} 24. Kg2 {[%clk 0:01:15]} 24... Bg6 {[%clk 0:00:08.7]} 25. h4 {[%clk
0:01:12]} 25... Bxf5 {[%clk 0:00:04.8]} 26. Qxf5 {[%clk 0:01:11]} 26... Nf7
{[%clk 0:00:05.3]} 27. h5 {[%clk 0:01:06.4]} 27... Rc8 {[%clk 0:00:02]} 28. Qe6
{[%clk 0:01:02.4]} 28... h6 {[%clk 0:00:01.3]} 29. Re2 {[%clk 0:00:51.9]} 1-0

[Event "*** Titled Tuesday Blitz"]
[Site "Chess.com"]
[Date "2020.12.01"]
[Round "7"]
[White "lacafi"]
[Black "KetiTsatsalashvili"]
[Result "0-1"]
[WhiteElo "2200"]
[BlackElo "2327"]
[TimeControl "180+1"]
[EndTime "11:15:11 PST"]
[Termination "KetiTsatsalashvili won by checkmate"]

1. d4 {[%clk 0:03:00.9]} 1... Nf6 {[%clk 0:02:59.1]} 2. Nf3 {[%clk 0:03:00.8]}
2... e6 {[%clk 0:02:59.3]} 3. e3 {[%clk 0:03:00.8]} 3... d5 {[%clk 0:02:59]} 4.
Bd3 {[%clk 0:03:01.2]} 4... Be7 {[%clk 0:02:58.5]} 5. Nbd2 {[%clk 0:03:01.4]}
5... a6 {[%clk 0:02:58.9]} 6. Qe2 {[%clk 0:03:01.9]} 6... O-O {[%clk 0:02:58.4]}
7. O-O {[%clk 0:03:01.9]} 7... c5 {[%clk 0:02:58.1]} 8. c3 {[%clk 0:03:01.7]}
8... Nc6 {[%clk 0:02:56.5]} 9. Re1 {[%clk 0:02:58.6]} 9... b5 {[%clk 0:02:54.7]}
10. dxc5 {[%clk 0:02:58.6]} 10... Bxc5 {[%clk 0:02:54.4]} 11. e4 {[%clk
0:02:59.3]} 11... Ng4 {[%clk 0:02:44.8]} 12. Rf1 {[%clk 0:02:47.8]} 12... Bb7
{[%clk 0:02:26.2]} 13. h3 {[%clk 0:02:40.9]} 13... Nge5 {[%clk 0:02:20.2]} 14.
Bc2 {[%clk 0:02:37.1]} 14... Ng6 {[%clk 0:02:13.1]} 15. Nb3 {[%clk 0:02:32.9]}
15... Bd6 {[%clk 0:02:02.5]} 16. Re1 {[%clk 0:02:24.6]} 16... Nce5 {[%clk
0:01:56.7]} 17. Nfd4 {[%clk 0:02:01.4]} 17... Nc4 {[%clk 0:01:50.4]} 18. g3
{[%clk 0:01:54.1]} 18... Qc7 {[%clk 0:01:46.9]} 19. f4 {[%clk 0:01:51.8]} 19...
e5 {[%clk 0:01:34.6]} 20. fxe5 {[%clk 0:01:10.2]} 20... Bxe5 {[%clk 0:01:33.5]}
21. g4 {[%clk 0:01:10.5]} 21... Rae8 {[%clk 0:01:29]} 22. Qg2 {[%clk 0:01:02.1]}
22... Bg3 {[%clk 0:01:12.1]} 23. Re2 {[%clk 0:00:57.4]} 23... Nh4 {[%clk
0:01:03.1]} 24. Qf1 {[%clk 0:00:49.2]} 24... dxe4 {[%clk 0:00:52.7]} 25. Nf5
{[%clk 0:00:38.7]} 25... Nf3+ {[%clk 0:00:39.1]} 26. Kg2 {[%clk 0:00:28.1]}
26... Bf4 {[%clk 0:00:34.1]} 27. Nbd4 {[%clk 0:00:12.8]} 27... Bxc1 {[%clk
0:00:33]} 28. Rxc1 {[%clk 0:00:11.6]} 28... Qh2# {[%clk 0:00:32.3]} 0-1

[Event "*** Titled Tuesday Blitz"]
[Site "Chess.com"]
[Date "2020.12.01"]
[Round "7"]
[White "gilbert_gm"]
[Black "German_Bazeev"]
[Result "0-1"]
[WhiteElo "2556"]
[BlackElo "2719"]
[TimeControl "180+1"]
[EndTime "11:15:13 PST"]
[Termination "German_Bazeev won by resignation"]

1. e4 {[%clk 0:02:54.4]} 1... c6 {[%clk 0:02:59]} 2. d4 {[%clk 0:02:53.7]} 2...
d5 {[%clk 0:02:58.9]} 3. Nc3 {[%clk 0:02:51.2]} 3... dxe4 {[%clk 0:02:57.7]} 4.
Nxe4 {[%clk 0:02:52.1]} 4... Nf6 {[%clk 0:02:58.5]} 5. Nc3 {[%clk 0:02:30.1]}
5... Bf5 {[%clk 0:02:51.3]} 6. Bd3 {[%clk 0:02:25]} 6... Bg6 {[%clk 0:02:51]} 7.
Nf3 {[%clk 0:02:22.8]} 7... Nbd7 {[%clk 0:02:50.2]} 8. Qe2 {[%clk 0:02:22.5]}
8... e6 {[%clk 0:02:50.1]} 9. Bg5 {[%clk 0:02:21.5]} 9... Bb4 {[%clk 0:02:48.8]}
10. O-O {[%clk 0:02:16.8]} 10... Bxc3 {[%clk 0:02:31.7]} 11. bxc3 {[%clk
0:02:17.7]} 11... O-O {[%clk 0:02:30.5]} 12. a4 {[%clk 0:02:16.2]} 12... Qc7
{[%clk 0:02:20.2]} 13. Bh4 {[%clk 0:02:11.8]} 13... Bh5 {[%clk 0:02:03.9]} 14.
Bg3 {[%clk 0:01:53.4]} 14... Qa5 {[%clk 0:02:02.5]} 15. Rfb1 {[%clk 0:01:07.8]}
15... Qxc3 {[%clk 0:01:49.8]} 16. Bd6 {[%clk 0:01:07]} 16... Rfe8 {[%clk
0:01:37.6]} 17. Bb4 {[%clk 0:01:05]} 17... Bxf3 {[%clk 0:01:36.8]} 18. Qxf3
{[%clk 0:00:30.5]} 18... Qxd4 {[%clk 0:01:36.4]} 19. Bc3 {[%clk 0:00:30.7]}
19... Qd5 {[%clk 0:01:15.4]} 20. Qe2 {[%clk 0:00:17.3]} 20... b6 {[%clk
0:00:54.5]} 21. Rd1 {[%clk 0:00:16.9]} 21... Qh5 {[%clk 0:00:39.9]} 22. f3
{[%clk 0:00:16.7]} 22... Qc5+ {[%clk 0:00:32.9]} 23. Qe3 {[%clk 0:00:04.1]}
23... Qxe3+ {[%clk 0:00:32.3]} 0-1

[Event "*** Titled Tuesday Blitz"]
[Site "Chess.com"]
[Date "2020.12.01"]
[Round "7"]
[White "Ariadna_Atreides"]
[Black "MarcLonoff"]
[Result "0-1"]
[WhiteElo "2065"]
[BlackElo "2189"]
[TimeControl "180+1"]
[EndTime "11:15:14 PST"]
[Termination "MarcLonoff won by resignation"]

1. Nf3 {[%clk 0:02:56]} 1... e6 {[%clk 0:02:59.1]} 2. e3 {[%clk 0:02:50.5]} 2...
f5 {[%clk 0:02:57.2]} 3. b3 {[%clk 0:02:49.6]} 3... Nf6 {[%clk 0:02:56.5]} 4.
Bb2 {[%clk 0:02:49.1]} 4... b6 {[%clk 0:02:55.5]} 5. d3 {[%clk 0:02:45.9]} 5...
Bb7 {[%clk 0:02:55.1]} 6. Nbd2 {[%clk 0:02:46.4]} 6... Be7 {[%clk 0:02:51.9]} 7.
g3 {[%clk 0:02:45.9]} 7... O-O {[%clk 0:02:51.1]} 8. Bg2 {[%clk 0:02:45.6]} 8...
d5 {[%clk 0:02:50.9]} 9. Ne5 {[%clk 0:02:43]} 9... Nbd7 {[%clk 0:02:50.4]} 10.
f4 {[%clk 0:02:38.6]} 10... Nxe5 {[%clk 0:02:50]} 11. fxe5 {[%clk 0:02:34.9]}
11... Ng4 {[%clk 0:02:49.5]} 12. Qe2 {[%clk 0:02:32.7]} 12... c5 {[%clk
0:02:43.5]} 13. h3 {[%clk 0:02:05.8]} 13... Nh6 {[%clk 0:02:40.3]} 14. O-O-O
{[%clk 0:01:50.7]} 14... a5 {[%clk 0:02:38.5]} 15. g4 {[%clk 0:01:47.7]} 15...
a4 {[%clk 0:02:33.8]} 16. Kb1 {[%clk 0:01:46.5]} 16... axb3 {[%clk 0:02:31.4]}
17. axb3 {[%clk 0:01:41.5]} 17... Qb8 {[%clk 0:02:28.5]} 18. e4 {[%clk
0:01:36.1]} 18... fxe4 {[%clk 0:02:18.4]} 19. dxe4 {[%clk 0:01:34.7]} 19... d4
{[%clk 0:02:14.2]} 20. h4 {[%clk 0:01:27.9]} 20... Qxe5 {[%clk 0:02:06.2]} 21.
Nc4 {[%clk 0:01:24.8]} 21... Qc7 {[%clk 0:01:52]} 22. g5 {[%clk 0:01:22.4]}
22... Nf7 {[%clk 0:01:51.1]} 23. g6 {[%clk 0:01:22]} 23... hxg6 {[%clk
0:01:38.1]} 24. Qg4 {[%clk 0:01:21.3]} 24... Nh6 {[%clk 0:01:33.9]} 25. Qxg6
{[%clk 0:01:13.3]} 25... Rf6 {[%clk 0:01:32.7]} 26. Qh5 {[%clk 0:01:10.4]} 26...
b5 {[%clk 0:01:28.2]} 27. e5 {[%clk 0:00:56.5]} 27... Rf2 {[%clk 0:01:21.2]} 28.
Bxb7 {[%clk 0:00:52.4]} 28... Qxb7 {[%clk 0:01:18.8]} 29. Rhg1 {[%clk
0:00:48.4]} 29... Qe4 {[%clk 0:01:07.8]} 30. Rd3 {[%clk 0:00:38.3]} 30... bxc4
{[%clk 0:00:50.4]} 31. Rxg7+ {[%clk 0:00:26.9]} 31... Kxg7 {[%clk 0:00:46.2]}
32. Rg3+ {[%clk 0:00:27.2]} 32... Kh7 {[%clk 0:00:43.2]} 0-1

[Event "*** Titled Tuesday Blitz"]
[Site "Chess.com"]
[Date "2020.12.01"]
[Round "7"]
[White "onetowin"]
[Black "HouseOfDurin"]
[Result "1-0"]
[WhiteElo "2005"]
[BlackElo "2079"]
[TimeControl "180+1"]
[EndTime "11:15:14 PST"]
[Termination "onetowin won on time"]

1. d4 {[%clk 0:03:00.9]} 1... Nf6 {[%clk 0:02:58.6]} 2. Nf3 {[%clk 0:03:00.6]}
2... c5 {[%clk 0:02:59]} 3. d5 {[%clk 0:02:58.5]} 3... b5 {[%clk 0:02:57.7]} 4.
c4 {[%clk 0:02:55.8]} 4... bxc4 {[%clk 0:02:57.4]} 5. Nc3 {[%clk 0:02:54.9]}
5... d6 {[%clk 0:02:57.8]} 6. e4 {[%clk 0:02:53.7]} 6... Nbd7 {[%clk 0:02:58.4]}
7. Nd2 {[%clk 0:02:49.4]} 7... g6 {[%clk 0:02:58.9]} 8. Nxc4 {[%clk 0:02:47.5]}
8... Bg7 {[%clk 0:02:58]} 9. Be2 {[%clk 0:02:43.1]} 9... O-O {[%clk 0:02:57]}
10. a4 {[%clk 0:02:42.2]} 10... Nb6 {[%clk 0:02:36.2]} 11. Ne3 {[%clk
0:02:40.7]} 11... a5 {[%clk 0:02:28.6]} 12. O-O {[%clk 0:02:33.3]} 12... Nfd7
{[%clk 0:02:13.5]} 13. Qc2 {[%clk 0:02:22.4]} 13... Ba6 {[%clk 0:02:09.5]} 14.
Nb5 {[%clk 0:02:18.6]} 14... Qb8 {[%clk 0:01:55.2]} 15. Bd2 {[%clk 0:01:48.9]}
15... Rc8 {[%clk 0:01:52.5]} 16. Bxa5 {[%clk 0:01:45.6]} 16... Bxb5 {[%clk
0:01:52.2]} 17. axb5 {[%clk 0:01:46.5]} 17... c4 {[%clk 0:01:30]} 18. Rfc1
{[%clk 0:01:35.2]} 18... c3 {[%clk 0:01:00]} 19. Bxc3 {[%clk 0:01:28.7]} 19...
Rxa1 {[%clk 0:01:00.4]} 20. Rxa1 {[%clk 0:01:28.8]} 20... Qc7 {[%clk 0:00:47.8]}
21. Nd1 {[%clk 0:01:12.4]} 21... Ne5 {[%clk 0:00:35]} 22. Qb3 {[%clk 0:00:57]}
22... Qc5 {[%clk 0:00:19.6]} 23. Rc1 {[%clk 0:00:51.5]} 23... Nec4 {[%clk
0:00:06.7]} 24. Bxg7 {[%clk 0:00:49.5]} 24... Kxg7 {[%clk 0:00:04.8]} 25. Ne3
{[%clk 0:00:41.5]} 25... Nd2 {[%clk 0:00:01.8]} 26. Rxc5 {[%clk 0:00:39.4]} 1-0

[Event "*** Titled Tuesday Blitz"]
[Site "Chess.com"]
[Date "2020.12.01"]
[Round "7"]
[White "Andrii_Prydun"]
[Black "GameOverBro"]
[Result "0-1"]
[WhiteElo "2342"]
[BlackElo "2517"]
[TimeControl "180+1"]
[EndTime "11:15:18 PST"]
[Termination "GameOverBro won on time"]

1. d4 {[%clk 0:00:52.7]} 1... Nf6 {[%clk 0:02:50.6]} 2. c4 {[%clk 0:00:53.6]}
2... e6 {[%clk 0:02:49.6]} 3. Nf3 {[%clk 0:00:53.8]} 3... Bb4+ {[%clk
0:02:49.3]} 4. Bd2 {[%clk 0:00:51.4]} 4... Qe7 {[%clk 0:02:47.1]} 5. a3 {[%clk
0:00:48.5]} 5... Bxd2+ {[%clk 0:02:46.6]} 6. Qxd2 {[%clk 0:00:49.4]} 6... b6
{[%clk 0:02:44.9]} 7. Nc3 {[%clk 0:00:47.1]} 7... Bb7 {[%clk 0:02:44.7]} 8. Qc2
{[%clk 0:00:46.9]} 8... c5 {[%clk 0:02:39.4]} 9. Rd1 {[%clk 0:00:40.1]} 9...
Bxf3 {[%clk 0:02:18.5]} 10. gxf3 {[%clk 0:00:38.7]} 10... cxd4 {[%clk
0:02:18.6]} 11. Rxd4 {[%clk 0:00:38.5]} 11... Nc6 {[%clk 0:02:18.9]} 12. Rd2
{[%clk 0:00:36]} 12... Rc8 {[%clk 0:02:18.1]} 13. e3 {[%clk 0:00:21.3]} 13...
Ne5 {[%clk 0:02:17.6]} 14. Be2 {[%clk 0:00:18.3]} 14... O-O {[%clk 0:02:11.2]}
15. Ne4 {[%clk 0:00:16.5]} 15... d5 {[%clk 0:02:06.3]} 16. Nxf6+ {[%clk
0:00:15.4]} 16... Qxf6 {[%clk 0:02:07.2]} 17. f4 {[%clk 0:00:14.1]} 17... Nxc4
{[%clk 0:02:07.3]} 18. Bxc4 {[%clk 0:00:14.4]} 18... Rxc4 {[%clk 0:02:08.2]} 19.
Qd1 {[%clk 0:00:14.4]} 19... Rfc8 {[%clk 0:02:08]} 20. O-O {[%clk 0:00:14]}
20... g6 {[%clk 0:01:44.4]} 21. Qe2 {[%clk 0:00:12.2]} 21... h5 {[%clk
0:01:43.3]} 22. Rfd1 {[%clk 0:00:11.1]} 22... Kg7 {[%clk 0:01:42.5]} 23. Qf3
{[%clk 0:00:10.9]} 23... Rc1 {[%clk 0:01:40.7]} 24. Kf1 {[%clk 0:00:10.2]} 24...
R8c2 {[%clk 0:01:36.1]} 25. Rxc2 {[%clk 0:00:08.1]} 25... Rxc2 {[%clk
0:01:35.5]} 26. b4 {[%clk 0:00:08]} 26... Ra2 {[%clk 0:01:32]} 27. Rd3 {[%clk
0:00:07.3]} 27... Qa1+ {[%clk 0:01:28.9]} 28. Kg2 {[%clk 0:00:07]} 28... Rxa3
{[%clk 0:01:28.9]} 29. e4 {[%clk 0:00:06.6]} 29... dxe4 {[%clk 0:01:24]} 30.
Qxe4 {[%clk 0:00:05.4]} 30... Rxd3 {[%clk 0:01:23.4]} 31. Qxd3 {[%clk
0:00:06.3]} 31... a5 {[%clk 0:01:18.8]} 32. b5 {[%clk 0:00:04.4]} 32... a4
{[%clk 0:01:18.9]} 33. Qd6 {[%clk 0:00:03.4]} 33... a3 {[%clk 0:01:12.2]} 34.
Qxb6 {[%clk 0:00:03.9]} 34... a2 {[%clk 0:01:12]} 35. Qa5 {[%clk 0:00:03.6]}
35... Qb2 {[%clk 0:01:10.8]} 36. b6 {[%clk 0:00:02.1]} 36... a1=Q {[%clk
0:01:10.8]} 37. Qg5 {[%clk 0:00:01.6]} 37... Qxb6 {[%clk 0:01:08]} 0-1